bitfinex/quotes_BTCUSD_20251202
["timestamp","ask_amount","ask_price","bid_price","bid_amount"]
[1764634044179,0.00352689,86652.0,86651.0,0.22943804]
[1764634044386,0.00352689,86652.0,86651.0,0.55243804]
[1764634044568,0.00352689,86652.0,86651.0,0.55543804]
[1764634044770,0.00352689,86652.0,86651.0,0.55043804]
[1764634045074,0.16639242,86704.0,86696.0,0.04272]
[1764634045248,0.16639242,86704.0,86697.0,0.01832]
[1764634045249,0.2306792,86701.0,86697.0,0.01832]
[1764634045456,0.17804184,86704.0,86697.0,0.01832]
[1764634045457,0.00011593,86704.0,86703.0,0.11436505]
[1764634045662,0.00011593,86704.0,86703.0,0.20055505]
[1764634045868,0.00011593,86704.0,86703.0,0.11436505]
[1764634046318,0.00011593,86704.0,86703.0,0.20055505]
[1764634046514,0.00011593,86704.0,86703.0,0.25264299]
[1764634046825,0.00011593,86704.0,86703.0,0.26407804]
[1764634047618,0.00011593,86704.0,86703.0,0.26607804]
[1764634047778,0.00011593,86704.0,86703.0,0.26307804]
[1764634047972,0.00011593,86704.0,86703.0,0.11436505]
[1764634048518,0.00011593,86704.0,86703.0,0.19762323]
[1764634048741,0.00011593,86704.0,86703.0,0.18618818]
[1764634048881,0.00011593,86704.0,86703.0,0.19662323]
[1764634049091,0.00011593,86704.0,86703.0,0.19762323]
[1764634049538,0.00011593,86704.0,86703.0,0.1923629]
[1764634051163,0.00011593,86704.0,86703.0,0.11305785]
[1764634051380,0.00011593,86704.0,86703.0,0.001]
[1764634051578,0.00176358,86704.0,86703.0,0.01663289]
[1764634052381,0.01153442,86697.0,86690.0,0.04373]
[1764634052586,0.01153535,86690.0,86680.0,0.09]
[1764634052825,0.23069115,86696.0,86671.0,0.27347594]
[1764634052826,0.323,86695.0,86687.0,0.01153575]
[1764634053030,0.00011593,86704.0,86697.0,0.01153442]
[1764634053182,0.01153389,86701.0,86699.0,0.0576678]
[1764634053390,0.23069913,86693.0,86684.0,0.13272]
[1764634053571,0.01153562,86688.0,86685.0,0.02975505]
[1764634053776,0.01153495,86693.0,86685.0,0.02975505]
[1764634053973,0.01153442,86697.0,86696.0,0.03088]
[1764634054176,0.23069115,86696.0,86695.0,0.01832]
[1764634054383,0.23069115,86696.0,86695.0,0.01143505]
[1764634054592,0.01153508,86692.0,86689.0,0.03088]
[1764634054845,0.01153588,86686.0,86676.0,0.04373]
[1764634055154,0.01153562,86688.0,86685.0,0.01243505]
[1764634055354,0.01153508,86692.0,86685.0,0.01143505]
[1764634055355,0.323,86691.0,86685.0,0.01143505]
[1764634055568,0.01153562,86688.0,86685.0,0.01143505]
[1764634055786,0.01153602,86685.0,86684.0,0.01143505]
[1764634056981,0.24224638,86689.0,86684.0,0.01153615]
[1764634057173,0.01153602,86685.0,86682.0,0.0576678]
[1764634057378,0.01153575,86687.0,86683.0,0.01832]
[1764634057618,0.23070445,86691.0,86687.0,0.05696]
[1764634057823,0.23070445,86691.0,86682.0,0.29993219]
[1764634057824,0.23070977,86689.0,86682.0,0.0576678]
[1764634058022,0.23070977,86689.0,86688.0,0.01832]
[1764634058231,0.23070711,86690.0,86688.0,0.01832]
[1764634059112,0.01153602,86685.0,86682.0,0.0576678]
[1764634059327,0.23072308,86684.0,86683.0,0.01832]
[1764634059543,0.34808,86695.0,86688.0,0.01153562]
[1764634059740,0.01153469,86695.0,86690.0,0.01143505]
[1764634059937,0.01153495,86693.0,86690.0,0.01143505]
[1764634060517,0.23070179,86692.0,86687.0,0.001]
[1764634060724,0.01153535,86690.0,86687.0,0.001]
[1764634061203,0.01153495,86693.0,86687.0,0.01143505]
[1764634061415,0.01153535,86690.0,86687.0,0.01143505]
[1764634062179,0.01153535,86690.0,86687.0,0.01243505]
[1764634063567,0.01153508,86692.0,86687.0,0.01243505]
[1764634063726,0.01153522,86691.0,86687.0,0.01243505]
[1764634063926,0.00114089,86688.0,86687.0,0.01243505]
[1764634064375,0.24338945,86688.0,86683.0,0.11233]
[1764634064577,0.01153575,86687.0,86683.0,0.01832]
[1764634064782,0.01153642,86682.0,86676.0,0.27447356]
[1764634064918,0.01153628,86683.0,86681.0,0.0576678]
[1764634065855,0.01153628,86683.0,86682.0,0.01832]
[1764634066063,0.01153628,86683.0,86681.0,0.0576678]
[1764634066211,0.01153628,86683.0,86670.0,0.23075931]
[1764634066212,0.01153642,86682.0,86676.0,0.01153721]
[1764634066413,0.01153642,86682.0,86677.0,0.24906015]
[1764634066626,0.01153642,86682.0,86681.0,0.0576678]
[1764634066826,0.01153642,86682.0,86681.0,0.0586678]
[1764634067275,0.01153642,86682.0,86681.0,0.0576678]
[1764634067646,0.01153602,86685.0,86681.0,0.1146278]
[1764634067855,0.01153602,86685.0,86683.0,0.01143505]
[1764634068194,0.01153588,86686.0,86684.0,0.05696]
[1764634068339,0.01153495,86693.0,86689.0,0.01153548]
[1764634068538,0.33453495,86693.0,86692.0,0.01143505]
[1764634068788,0.33453495,86693.0,86690.0,0.01832]
[1764634068990,0.23070179,86692.0,86690.0,0.01832]
[1764634069580,0.23069069,86697.0,86691.0,0.15097]
[1764634069751,0.23066084,86708.0,86691.0,0.15097]
[1764634069752,0.24223214,86694.0,86691.0,0.15097]
[1764634069941,0.24223214,86694.0,86691.0,0.05696]
[1764634070169,0.0012676,86692.0,86691.0,0.05696]
[1764634070812,0.0012676,86692.0,86691.0,0.05796]
[1764634071018,0.0012676,86692.0,86691.0,0.001]
[1764634071226,0.0012676,86692.0,86682.0,0.01153642]
[1764634071227,0.01153602,86685.0,86680.0,0.10554668]
[1764634071589,0.23071196,86689.0,86685.0,0.01143505]
[1764634071755,0.24224744,86689.0,86688.0,0.01143505]
[1764634072004,0.24224744,86689.0,86688.0,0.06839505]
[1764634072361,0.01153548,86689.0,86688.0,0.16240505]
[1764634072929,0.01153575,86687.0,86683.0,0.01153628]
[1764634073130,0.01153575,86687.0,86686.0,0.01143505]
[1764634073376,0.01153562,86688.0,86686.0,0.01828]
[1764634073583,0.01153562,86688.0,86687.0,0.01143505]
[1764634073784,0.24224658,86689.0,86687.0,0.01143505]
[1764634073785,0.01153548,86689.0,86688.0,0.01143505]
[1764634073986,0.01153548,86689.0,86688.0,0.08767505]
[1764634074385,0.01153548,86689.0,86688.0,0.08667505]
[1764634074608,0.01153655,86681.0,86674.0,0.01143505]
[1764634074795,0.01153695,86678.0,86675.0,0.02981735]
[1764634074998,0.23074704,86675.0,86674.0,0.01143505]
[1764634075196,0.23074704,86675.0,86674.0,0.02971505]
[1764634075637,0.24227306,86680.0,86674.0,0.02971505]
[1764634075638,0.01153615,86684.0,86674.0,0.08667505]
[1764634075897,0.01153681,86679.0,86674.0,0.08667505]
[1764634076100,0.01153708,86677.0,86674.0,0.08667505]
[1764634077074,0.01165268,86679.0,86676.0,0.05696]
[1764634077280,0.01232946,86677.0,86674.0,0.02971505]
[1764634077482,0.01153708,86677.0,86674.0,0.02971505]
[1764634077685,0.00072901,86675.0,86674.0,0.03071505]
[1764634078637,0.00072901,86675.0,86674.0,0.02971505]
[1764634078839,0.00072901,86675.0,86674.0,0.03071505]
[1764634079057,0.00072901,86675.0,86674.0,0.08767505]
[1764634080760,0.00072901,86675.0,86674.0,0.18168505]
[1764634081167,0.00072901,86675.0,86674.0,0.001]
[1764634081168,0.23147605,86675.0,86674.0,0.001]
[1764634081497,0.00072901,86675.0,86674.0,0.17025]
[1764634081628,0.00072901,86675.0,86674.0,0.18168505]
[1764634081834,0.00072901,86675.0,86674.0,0.18068505]
[1764634082307,0.23147605,86675.0,86674.0,0.18068505]
[1764634082658,0.23147605,86675.0,86674.0,0.01828]
[1764634082894,0.23147605,86675.0,86674.0,0.02971505]
[1764634083097,0.23147605,86675.0,86674.0,0.01828]
[1764634083306,0.23147605,86675.0,86674.0,0.01928]
[1764634083756,0.01153841,86667.0,86664.0,0.14692305]
[1764634083929,0.01153841,86667.0,86660.0,0.04373]
[1764634083930,0.23078165,86662.0,86660.0,0.04373]
[1764634084103,0.23077899,86663.0,86661.0,0.0759478]
[1764634084678,0.23077899,86663.0,86662.0,0.01828]
[1764634084875,0.01153881,86664.0,86659.0,0.01143505]
[1764634085083,0.24231732,86664.0,86663.0,0.0576678]
[1764634086106,0.01154214,86639.0,86636.0,0.04352]
[1764634086286,0.01154214,86639.0,86618.0,0.14692305]
[1764634086287,0.23085624,86634.0,86618.0,0.08072]
[1764634086481,0.60817624,86634.0,86631.0,0.01828]
[1764634086711,0.7470822,86634.0,86631.0,0.01828]
[1764634086907,0.63185624,86634.0,86618.0,0.04156]
[1764634087110,0.63185624,86634.0,86627.0,0.01828]
[1764634087308,0.631972,86634.0,86627.0,0.01828]
[1764634087513,0.631972,86634.0,86607.0,0.04156]
[1764634087713,0.631972,86634.0,86627.0,0.01828]
[1764634087919,0.631972,86634.0,86633.0,0.00208803]
[1764634088980,0.608292,86634.0,86633.0,0.00208803]
[1764634089189,0.608292,86634.0,86633.0,0.00108803]
[1764634090320,0.553972,86634.0,86633.0,0.00108803]
[1764634091146,0.607982,86634.0,86633.0,0.00108803]
[1764634091753,0.74718796,86634.0,86633.0,0.00108803]
[1764634092897,0.631962,86634.0,86633.0,0.00108803]
[1764634094510,2.631962,86634.0,86633.0,0.00108803]
[1764634094752,0.23090688,86615.0,86614.0,0.01828]
[1764634094960,0.01154694,86603.0,86599.0,0.0576678]
[1764634095251,0.01154587,86611.0,86602.0,0.05514]
[1764634095517,0.23093088,86606.0,86605.0,0.01143505]
[1764634095657,0.23093088,86606.0,86600.0,0.01828]
[1764634095658,0.23094421,86601.0,86600.0,0.01828]
[1764634095820,0.23094421,86601.0,86600.0,0.02971505]
[1764634096020,0.01154694,86603.0,86600.0,0.01866633]
[1764634096238,0.03868,86615.0,86604.0,0.01154681]
[1764634096439,0.323,86615.0,86614.0,0.01143505]
[1764634096660,0.01154627,86608.0,86603.0,0.01154694]
[1764634096907,0.23092288,86609.0,86607.0,0.01143505]
[1764634097133,0.23092288,86609.0,86607.0,0.09360505]
[1764634097616,0.01154601,86610.0,86608.0,0.05514]
[1764634097821,0.01154601,86610.0,86609.0,0.05514]
[1764634098031,0.24246873,86610.0,86609.0,0.05514]
[1764634098440,0.01154441,86622.0,86615.0,0.01154534]
[1764634098638,0.24242424,86625.0,86622.0,0.04156]
[1764634099097,0.23088522,86624.0,86622.0,0.04156]
[1764634099244,0.24242424,86625.0,86622.0,0.04156]
[1764634099444,0.01154334,86630.0,86624.0,0.05514]
[1764634099645,0.01154294,86633.0,86626.0,0.01154387]
[1764634099871,0.01154334,86630.0,86629.0,0.01143505]
[1764634100909,0.0116591,86630.0,86629.0,0.01143505]
[1764634101069,0.00011576,86630.0,86629.0,0.01143505]
[1764634101907,0.23086957,86629.0,86627.0,0.01832]
[1764634102102,0.24241906,86627.0,86624.0,0.01143505]
[1764634102331,0.24241906,86627.0,86625.0,0.01828]
[1764634102689,0.24241906,86627.0,86626.0,0.01828]
[1764634103029,0.01154481,86619.0,86616.0,0.0576678]
[1764634103230,0.01154481,86619.0,86617.0,0.01828]
[1764634103646,0.01154481,86619.0,86618.0,0.02975505]
[1764634104049,0.01154481,86619.0,86618.0,0.01143505]
[1764634104375,0.01154481,86619.0,86618.0,0.02975505]
[1764634104710,0.01154601,86610.0,86608.0,0.01143505]
[1764634104936,0.24248456,86604.0,86603.0,0.0576678]
[1764634105097,0.01154774,86597.0,86596.0,0.01143505]
[1764634105474,0.24249742,86599.0,86596.0,0.09904]
[1764634105764,0.23095488,86597.0,86596.0,0.01832]
[1764634105939,0.24249742,86599.0,86596.0,0.01832]
[1764634106104,0.01154734,86600.0,86596.0,0.01870633]
[1764634106306,0.24249913,86599.0,86596.0,0.01870633]
[1764634106745,0.01154747,86599.0,86596.0,0.01870633]
[1764634106957,0.24249957,86599.0,86596.0,0.01870633]
[1764634107321,0.23095434,86598.0,86596.0,0.01870633]
[1764634107724,0.23095488,86597.0,86596.0,0.01870633]
[1764634107960,0.23095488,86597.0,86596.0,0.00038633]
[1764634108160,0.23095488,86597.0,86596.0,0.01970633]
[1764634108994,0.24249957,86599.0,86596.0,0.01970633]
[1764634109167,0.01154627,86608.0,86600.0,0.01143505]
[1764634109372,0.2424737,86608.0,86605.0,0.06657505]
[1764634109572,0.23093026,86607.0,86605.0,0.06657505]
[1764634109774,0.2424737,86608.0,86605.0,0.14047]
[1764634109941,0.2424737,86608.0,86607.0,0.01143505]
[1764634110146,0.2424737,86608.0,86607.0,0.02975505]
[1764634111204,0.01154587,86611.0,86607.0,0.15749]
[1764634111428,0.01154467,86620.0,86612.0,0.05384]
[1764634111554,0.01154534,86615.0,86614.0,0.01143505]
[1764634111756,0.2424543,86615.0,86614.0,0.01143505]
[1764634111956,0.2424543,86615.0,86614.0,0.06527505]
[1764634112398,0.01154574,86612.0,86607.0,0.001]
[1764634112603,0.24246834,86610.0,86608.0,0.0759878]
[1764634114192,0.24246834,86610.0,86609.0,0.01143505]
[1764634114591,0.01154601,86610.0,86609.0,0.01143505]
[1764634115362,0.01154601,86610.0,86609.0,0.01243505]
[1764634115957,0.01154574,86612.0,86609.0,0.06666505]
[1764634116205,0.01154467,86620.0,86612.0,0.01154574]
[1764634116407,0.24244019,86620.0,86619.0,0.01143505]
[1764634116525,0.24244019,86620.0,86619.0,0.02975505]
[1764634116723,0.01154667,86605.0,86603.0,0.01143505]
[1764634116953,0.01154667,86605.0,86599.0,0.30502]
[1764634116954,0.01154401,86625.0,86614.0,0.23090716]
[1764634117155,0.01154441,86622.0,86621.0,0.0576678]
[1764634117396,0.01154441,86622.0,86621.0,0.06910285]
[1764634118390,0.01154441,86622.0,86621.0,0.07010285]
[1764634118762,0.01154441,86622.0,86621.0,0.1128978]
[1764634119148,0.01154441,86622.0,86621.0,0.0586678]
[1764634120302,0.01154441,86622.0,86621.0,0.01932]
[1764634120718,0.01230441,86622.0,86621.0,0.01932]
[1764634121935,0.08803441,86622.0,86621.0,0.01932]
[1764634122145,0.11280792,86622.0,86621.0,0.01932]
[1764634124304,0.08803441,86622.0,86621.0,0.01932]
[1764634124896,0.01230441,86622.0,86621.0,0.01932]
[1764634125620,0.08803441,86622.0,86621.0,0.01932]
[1764634125998,0.1128203,86622.0,86621.0,0.001]
[1764634126163,0.19435178,86622.0,86621.0,0.001]
[1764634127028,0.23089888,86618.0,86617.0,0.01832]
[1764634127192,0.30739888,86618.0,86617.0,0.01832]
[1764634127409,0.33218477,86618.0,86617.0,0.01832]
[1764634127986,0.16578659,86618.0,86617.0,0.01832]
[1764634128714,0.23092903,86607.0,86606.0,0.01143505]
[1764634128922,0.23092903,86607.0,86606.0,0.02975505]
[1764634129117,0.01154561,86613.0,86609.0,0.01154614]
[1764634129362,0.24246038,86613.0,86612.0,0.01143505]
[1764634130989,0.23092821,86607.0,86606.0,0.01832]
[1764634131418,0.23092821,86607.0,86606.0,0.07255]
[1764634131611,0.2424698,86609.0,86606.0,0.07255]
[1764634132576,0.2424698,86609.0,86606.0,0.07355]
[1764634132919,0.07728249,86612.0,86608.0,0.05423]
[1764634133100,0.01154587,86611.0,86608.0,0.28515487]
[1764634133297,0.2424597,86613.0,86609.0,0.32707735]
[1764634133498,0.01154547,86614.0,86612.0,0.05423]
[1764634134094,0.24245673,86614.0,86612.0,0.05423]
[1764634134631,0.24245673,86614.0,86612.0,0.09706]
[1764634134836,0.01154547,86614.0,86612.0,0.09706]
[1764634135045,0.01154547,86614.0,86613.0,0.05423]
[1764634136021,0.23091221,86613.0,86612.0,0.04383]
[1764634136300,0.01154547,86614.0,86612.0,0.04283]
[1764634136684,0.01154547,86614.0,86613.0,0.001]
[1764634137274,0.01154601,86610.0,86602.0,0.01154707]
[1764634137449,0.01154601,86610.0,86603.0,0.01832]
[1764634137450,0.01154627,86608.0,86603.0,0.01832]
[1764634137587,0.01154654,86606.0,86603.0,0.01832]
[1764634137804,0.01154654,86606.0,86603.0,0.02986694]
[1764634139770,0.01154654,86606.0,86604.0,0.001]
[1764634139947,0.01154614,86609.0,86605.0,0.05423]
[1764634140151,0.01154614,86609.0,86605.0,0.2967084]
[1764634140361,0.24247394,86608.0,86606.0,0.01832]
[1764634140578,0.24247394,86608.0,86607.0,0.01143505]
[1764634140826,0.01154627,86608.0,86607.0,0.01143505]
[1764634141051,0.01154614,86609.0,86608.0,0.01143505]
[1764634141272,0.01154521,86616.0,86610.0,0.01154601]
[1764634141499,0.23090149,86618.0,86616.0,0.05423]
[1764634141723,0.23090149,86618.0,86613.0,0.01143505]
[1764634141724,0.01154507,86617.0,86613.0,0.02298066]
[1764634141959,0.24244286,86619.0,86616.0,0.0576678]
[1764634142163,0.24244286,86619.0,86618.0,0.01143505]
[1764634142370,0.24243216,86623.0,86617.0,0.01154507]
[1764634142580,0.01154454,86621.0,86618.0,0.01154494]
[1764634143056,0.01154441,86622.0,86620.0,0.01143505]
[1764634143332,0.23090155,86617.0,86616.0,0.0586678]
[1764634143549,0.23090155,86617.0,86616.0,0.06910285]
[1764634143786,0.24243543,86621.0,86619.0,0.01143505]
[1764634144002,0.01154454,86621.0,86619.0,0.01143505]
[1764634144216,0.24243778,86621.0,86619.0,0.01143505]
[1764634144626,0.2308756,86627.0,86620.0,0.05423]
[1764634144833,0.24243309,86622.0,86619.0,0.01143505]
[1764634145258,0.23089281,86621.0,86619.0,0.01143505]
[1764634146021,0.01154427,86623.0,86619.0,0.02297986]
[1764634146150,0.01154427,86623.0,86619.0,0.02397986]
[1764634147128,0.01154427,86623.0,86620.0,0.24243822]
[1764634147330,0.01154414,86624.0,86621.0,0.01154454]
[1764634147540,0.01154334,86630.0,86624.0,0.23088289]
[1764634147742,0.01154361,86628.0,86627.0,0.01143505]
[1764634148290,0.01154334,86630.0,86626.0,0.04367]
[1764634148506,0.01154334,86630.0,86629.0,0.06910285]
[1764634148718,0.01154334,86630.0,86629.0,0.01143505]
[1764634148719,0.0116591,86630.0,86629.0,0.01143505]
[1764634149714,0.0116591,86630.0,86629.0,0.01243505]
[1764634149918,0.0116591,86630.0,86629.0,0.001]
[1764634150122,0.1373294,86630.0,86629.0,0.001]
[1764634150396,0.48514093,86630.0,86629.0,0.001]
[1764634151009,0.51617892,86630.0,86629.0,0.001]
[1764634151172,0.46344862,86630.0,86629.0,0.001]
[1764634151822,0.23089355,86620.0,86618.0,0.01828]
[1764634152111,0.03247,86619.0,86618.0,0.01828]
[1764634152287,0.11357,86619.0,86618.0,0.01828]
[1764634153063,0.11357,86619.0,86618.0,0.01928]
[1764634153499,0.11357,86619.0,86618.0,0.01828]
[1764634154010,0.11357,86619.0,86618.0,0.01928]
[1764634154456,0.11357,86619.0,86618.0,0.001]
[1764634154989,0.01154507,86617.0,86614.0,0.01828]
[1764634155187,0.01154641,86607.0,86605.0,0.01143505]
[1764634155388,0.01154654,86606.0,86605.0,0.01143505]
[1764634155622,0.01154654,86606.0,86605.0,0.02971505]
[1764634158257,0.01154654,86606.0,86605.0,0.03071505]
[1764634161334,0.01154614,86609.0,86606.0,0.01143505]
[1764634162272,0.23092741,86608.0,86606.0,0.01143505]
[1764634162562,0.23092741,86608.0,86606.0,0.01243505]
[1764634163453,0.08021,86607.0,86606.0,0.001]
[1764634163810,0.01154627,86608.0,86601.0,0.01143505]
[1764634164030,0.01154494,86618.0,86613.0,0.01154561]
[1764634164228,0.24245137,86616.0,86615.0,0.01143505]
[1764634164426,0.01154521,86616.0,86615.0,0.01143505]
[1764634165282,0.23086584,86631.0,86617.0,0.01154507]
[1764634165490,0.01154387,86626.0,86625.0,0.06910285]
[1764634165637,0.24240905,86631.0,86629.0,0.01143505]
[1764634166300,0.2308749,86627.0,86625.0,0.0759478]
[1764634166613,0.2308749,86627.0,86626.0,0.01143505]
[1764634167022,0.01154361,86628.0,86626.0,0.04917505]
[1764634167235,0.01154361,86628.0,86627.0,0.01143505]
[1764634167774,0.23098533,86630.0,86627.0,0.01143505]
[1764634167775,0.00011576,86630.0,86628.0,0.01143505]
[1764634167973,0.00011576,86630.0,86628.0,0.06943505]
[1764634168709,0.23098267,86630.0,86628.0,0.06943505]
[1764634168906,0.23098267,86630.0,86628.0,0.01243505]
[1764634172590,0.0521,86629.0,86628.0,0.01243505]
[1764634173017,0.00011576,86630.0,86628.0,0.01243505]
[1764634173561,0.00011576,86630.0,86628.0,0.01143505]
[1764634173793,0.00011576,86630.0,86628.0,0.01243505]
[1764634173998,0.23098479,86630.0,86628.0,0.01243505]
[1764634174201,0.23098479,86630.0,86628.0,0.01143505]
[1764634174607,0.23098479,86630.0,86628.0,0.01243505]
[1764634178703,0.23098479,86630.0,86629.0,0.01828]
[1764634179661,0.23098479,86630.0,86629.0,0.01928]
[1764634181905,0.23179479,86630.0,86629.0,0.01928]
[1764634182108,0.38727673,86630.0,86629.0,0.001]
[1764634182746,0.31163479,86630.0,86629.0,0.001]
[1764634183045,0.23088556,86623.0,86622.0,0.01828]
[1764634183244,0.34967556,86623.0,86622.0,0.01828]
[1764634185247,0.01154561,86613.0,86610.0,0.01143505]
[1764634186470,0.23091488,86612.0,86610.0,0.01243505]
[1764634186720,0.24246022,86613.0,86610.0,0.01243505]
[1764634187560,0.23091725,86612.0,86610.0,0.01243505]
[1764634187893,0.23091725,86612.0,86610.0,0.01143505]
[1764634188097,0.01154747,86599.0,86591.0,0.27188972]
[1764634188301,0.24251302,86594.0,86593.0,0.01143505]
[1764634188505,0.23097088,86591.0,86590.0,0.06950285]
[1764634188741,0.32033088,86591.0,86590.0,0.0580678]
[1764634188939,0.32033088,86591.0,86590.0,0.08778285]
[1764634188940,0.26828088,86591.0,86590.0,0.08778285]
[1764634189143,0.26828088,86591.0,86590.0,0.03011505]
[1764634189320,0.26931088,86591.0,86590.0,0.03050138]
[1764634189521,0.35061088,86591.0,86590.0,0.03050138]
[1764634189730,0.26931088,86591.0,86590.0,0.03050138]
[1764634190318,0.03834,86591.0,86590.0,0.03050138]
[1764634190544,0.01154614,86609.0,86601.0,0.01154721]
[1764634190755,0.24247142,86609.0,86607.0,0.01143505]
[1764634191292,0.01154614,86609.0,86606.0,0.0576678]
[1764634191452,0.01154494,86618.0,86608.0,0.05527]
[1764634191650,0.01154494,86618.0,86603.0,0.23093687]
[1764634191651,0.01154587,86611.0,86602.0,0.01828]
[1764634191865,0.01154641,86607.0,86602.0,0.02982707]
[1764634192184,0.01154641,86607.0,86606.0,0.01143505]
[1764634193469,0.01154614,86609.0,86606.0,0.01143505]
[1764634193670,0.01154614,86609.0,86608.0,0.01143505]
[1764634193870,0.01154601,86610.0,86606.0,0.01154654]
[1764634194206,0.24245559,86614.0,86611.0,0.01143505]
[1764634194207,0.01154547,86614.0,86611.0,0.01143505]
[1764634194415,0.01154521,86616.0,86613.0,0.10773561]
[1764634194622,0.01154521,86616.0,86615.0,0.06910285]
[1764634194975,0.01154507,86617.0,86616.0,0.01143505]
[1764634195293,0.24244165,86619.0,86618.0,0.01143505]
[1764634195532,0.01154414,86624.0,86621.0,0.01143505]
[1764634195723,0.23088556,86623.0,86622.0,0.01828]
[1764634196158,0.01154614,86609.0,86605.0,0.01143505]
[1764634196365,0.04969601,86610.0,86606.0,0.02982654]
[1764634196568,0.24246902,86609.0,86606.0,0.01828]
[1764634196945,0.03815,86610.0,86606.0,0.01828]
[1764634197153,0.01154561,86613.0,86610.0,0.01143505]
[1764634197356,0.24243913,86620.0,86619.0,0.01143505]
[1764634198305,0.23090155,86617.0,86616.0,0.02971505]
[1764634199564,0.24244296,86619.0,86616.0,0.07355]
[1764634199812,0.24244296,86619.0,86618.0,0.01143505]
[1764634201277,0.24244296,86619.0,86618.0,0.01243505]
[1764634201926,0.36292296,86619.0,86618.0,0.001]
[1764634202133,0.68592296,86619.0,86618.0,0.001]
[1764634202337,0.68592296,86619.0,86605.0,0.00038633]
[1764634202338,0.23093088,86606.0,86605.0,0.00038633]
[1764634202512,0.23174088,86606.0,86605.0,0.00038633]
[1764634202696,0.31385088,86606.0,86605.0,0.00038633]
[1764634204483,0.00081,86606.0,86605.0,0.00138633]
[1764634204684,0.00969,86606.0,86605.0,0.00138633]
[1764634204864,0.09107,86606.0,86605.0,0.00138633]
[1764634205964,0.17461966,86606.0,86605.0,0.00138633]
[1764634208402,0.25949084,86607.0,86605.0,0.00138633]
[1764634208403,0.25174432,86607.0,86605.0,0.00138633]
[1764634209727,0.25174432,86607.0,86605.0,0.00038633]
[1764634210082,0.25174432,86607.0,86605.0,0.00138633]
[1764634214336,0.01154601,86610.0,86606.0,0.04984]
[1764634214610,0.24246902,86609.0,86607.0,0.01828]
[1764634216915,0.24246902,86609.0,86607.0,0.01928]
[1764634217114,0.04502,86608.0,86607.0,0.001]
[1764634217322,0.04502,86608.0,86607.0,0.01928]
[1764634218945,0.04502,86608.0,86607.0,0.01828]
[1764634219353,0.04502,86608.0,86607.0,0.01928]
[1764634219560,0.04502,86608.0,86607.0,0.001]
[1764634219876,0.04502,86608.0,86607.0,0.01928]
[1764634221504,0.24246902,86609.0,86607.0,0.01928]
[1764634222308,0.24246902,86609.0,86607.0,0.01828]
[1764634223116,0.24246902,86609.0,86607.0,0.01928]
[1764634223727,0.28748902,86609.0,86607.0,0.01928]
[1764634223930,0.24246902,86609.0,86607.0,0.001]
[1764634224130,0.04502,86608.0,86607.0,0.001]
[1764634224328,0.04502,86608.0,86607.0,0.01928]
[1764634224992,0.04502,86608.0,86607.0,0.01828]
[1764634225207,0.23092821,86607.0,86605.0,0.00038633]
[1764634225330,0.23092821,86607.0,86606.0,0.01828]
[1764634226360,0.27594821,86607.0,86606.0,0.01828]
[1764634227442,0.23092821,86607.0,86606.0,0.01828]
[1764634228212,0.23092821,86607.0,86606.0,0.01928]
[1764634234089,0.27219821,86607.0,86606.0,0.001]
[1764634235430,0.29702817,86607.0,86606.0,0.001]
[1764634238994,0.29702722,86607.0,86606.0,0.001]
[1764634239344,0.27219821,86607.0,86606.0,0.001]
[1764634239896,0.23092821,86607.0,86606.0,0.001]
[1764634240923,0.34857667,86607.0,86606.0,0.001]
[1764634241149,0.37340589,86607.0,86606.0,0.001]
[1764634242779,0.29702743,86607.0,86606.0,0.001]
[1764634246674,0.29702743,86607.0,86605.0,0.00038633]
[1764634246872,0.09725566,86607.0,86605.0,0.00038633]
[1764634247083,0.04127,86606.0,86605.0,0.00038633]
[1764634250632,0.07242644,86607.0,86605.0,0.00038633]
[1764634251600,0.11369644,86607.0,86605.0,0.00038633]
[1764634253021,0.03471802,86606.0,86605.0,0.00038633]
[1764634253286,0.11369644,86607.0,86605.0,0.00038633]
[1764634253904,0.07242644,86607.0,86606.0,0.04815]
[1764634254333,0.07242644,86607.0,86605.0,0.08481138]
[1764634254334,0.07242644,86607.0,86605.0,0.01182138]
[1764634254543,0.07242644,86607.0,86606.0,0.01828]
[1764634256244,0.11369644,86607.0,86606.0,0.01828]
[1764634257306,0.11369644,86607.0,86605.0,0.00038633]
[1764634257690,0.04127,86606.0,86605.0,0.00038633]
[1764634258739,0.10592489,86606.0,86605.0,0.00038633]
[1764634258913,0.04127,86606.0,86605.0,0.00038633]
[1764634259702,0.06126,86606.0,86605.0,0.00038633]
[1764634262213,0.38426,86606.0,86605.0,0.00038633]
[1764634262558,0.40908194,86606.0,86605.0,0.00038633]
[1764634266973,0.02482194,86606.0,86605.0,0.00038633]
[1764634267174,0.07242644,86607.0,86605.0,0.00038633]
[1764634267484,0.23092554,86608.0,86605.0,0.00038633]
[1764634267822,0.23092821,86607.0,86605.0,0.00038633]
[1764634269005,0.323,86606.0,86605.0,0.00038633]
[1764634269202,0.323,86606.0,86590.0,0.0004]
[1764634269203,0.55397088,86591.0,86590.0,0.0004]
[1764634269515,0.55401098,86591.0,86590.0,0.0004]
[1764634269965,0.5887372,86591.0,86590.0,0.0004]
[1764634276636,0.5887372,86591.0,86590.0,0.12036]
[1764634276637,0.55401098,86591.0,86590.0,0.12036]
[1764634278397,0.23101098,86591.0,86590.0,0.12136]
[1764634278993,4.01e-05,86591.0,86590.0,0.12136]
[1764634279196,4.01e-05,86591.0,86590.0,0.16784089]
[1764634279460,0.01154667,86605.0,86604.0,0.01143505]
[1764634279795,4.011e-05,86605.0,86604.0,0.09679505]
[1764634279933,4.011e-05,86605.0,86604.0,0.16794505]
[1764634280131,4.011e-05,86605.0,86604.0,0.20501382]
[1764634280733,4.011e-05,86605.0,86604.0,0.19357877]
[1764634280930,4.011e-05,86605.0,86604.0,0.20501382]
[1764634281458,4.011e-05,86605.0,86604.0,0.43695003]
[1764634283431,4.011e-05,86605.0,86604.0,0.26853681]
[1764634283582,4.011e-05,86605.0,86604.0,0.51775302]
[1764634284126,4.011e-05,86605.0,86604.0,0.51675302]
[1764634284633,4.011e-05,86605.0,86604.0,0.51875302]
[1764634285010,4.011e-05,86605.0,86604.0,0.51675302]
[1764634285196,4.011e-05,86605.0,86604.0,0.51875302]
[1764634289134,4.011e-05,86605.0,86604.0,0.66567607]
[1764634289620,4.011e-05,86605.0,86604.0,0.70037983]
[1764634290252,4.011e-05,86605.0,86604.0,0.68209983]
[1764634290384,4.011e-05,86605.0,86604.0,0.70037983]
[1764634296321,4.011e-05,86605.0,86604.0,0.64503106]
[1764634296592,4.011e-05,86605.0,86604.0,0.6286073]
[1764634297252,4.011e-05,86605.0,86604.0,0.64015211]
[1764634301865,4.011e-05,86605.0,86604.0,0.61043706]
[1764634302097,4.011e-05,86605.0,86604.0,0.64015211]